bitfinex/quotes_ETHUSD_20250115
["timestamp","ask_amount","ask_price","bid_price","bid_amount"]
[1736919932558,3.08881,3237.5,3237.0,0.8227]
[1736919932960,0.02347533,3237.4,3237.0,0.8227]
[1736919941142,3.89631,3237.8,3237.0,0.8227]
[1736919941295,3.08861,3237.8,3237.2,0.8227]
[1736919941495,0.02347533,3237.7,3237.2,0.8227]
[1736919946547,0.02347533,3237.9,3237.2,0.8227]
[1736919949245,3.11191533,3237.9,3237.2,0.8227]
[1736919951243,0.02347533,3237.9,3237.2,0.8227]
[1736919951412,0.02347533,3237.9,3237.3,0.38227]
[1736919954407,0.02347533,3237.9,3237.4,0.7543]
[1736919962413,0.00128255,3238.4,3237.5,1.40717327]
[1736919962612,3.08805,3238.3,3237.8,0.8208]
[1736919962831,3.11164533,3238.2,3237.8,0.8208]
[1736919965285,0.02347533,3238.2,3237.6,0.9649]
[1736919965587,0.02347533,3238.2,3237.2,0.7879]
[1736919965588,3.08865,3237.7,3237.2,0.7879]
[1736919965890,0.02347533,3237.6,3237.3,0.177]
[1736919966244,2.13388631,3238.1,3237.3,0.177]
[1736919966446,3.08845,3237.9,3237.3,0.177]
[1736919966695,3.84584,3238.1,3237.4,0.7879]
[1736919966880,3.08834,3238.0,3237.4,0.7879]
[1736919967086,3.08834,3238.0,3237.4,0.81878826]
[1736919967406,3.08834,3238.0,3237.4,0.7879]
[1736919967871,0.02347533,3237.9,3237.4,0.7879]
[1736919968079,0.02347533,3237.9,3237.4,1.20780186]
[1736919968368,3.11164533,3238.2,3237.4,1.20780186]
[1736919970095,3.11164533,3238.2,3237.5,0.7879]
[1736919970401,3.08925255,3238.4,3237.6,0.7879]
[1736919970656,3.08806,3238.3,3237.6,0.7879]
[1736919970842,3.08806,3238.3,3237.7,0.5195072]
[1736919973254,0.00128255,3238.4,3237.7,0.5195072]
[1736919973461,0.00128255,3238.4,3237.8,0.7879]
[1736919973617,3.08923255,3238.4,3237.8,0.7879]
[1736919976460,0.00128255,3238.4,3237.8,0.7879]
[1736919977467,0.00128255,3238.4,3238.0,0.7568]
[1736919979873,0.02475788,3238.4,3238.0,0.7568]
[1736919981075,0.00128255,3238.4,3238.0,0.7568]
[1736919982073,0.02475788,3238.4,3238.0,0.7568]
[1736919982988,0.00128255,3238.4,3238.0,0.7568]
[1736919985780,3.08923255,3238.4,3238.0,0.7568]
[1736919988457,0.02347533,3238.3,3238.0,0.7568]
[1736919988863,3.08923255,3238.4,3238.0,0.7568]
[1736919991321,2.88923255,3238.4,3238.0,0.7568]
[1736919991475,3.11154533,3238.3,3238.0,0.7568]
[1736919991674,3.08817,3238.2,3238.1,0.177]
[1736919992016,4.46413656,3238.2,3238.1,0.177]
[1736919992617,0.7944,3238.1,3237.5,1.9341704]
[1736919992798,3.08842,3237.9,3237.8,0.177]
[1736919993037,3.78787853,3237.9,3237.8,0.177]
[1736919993725,3.78787853,3237.9,3237.5,1.9341704]
[1736919993726,3.08863,3237.7,3237.5,1.9341704]
[1736919993927,0.02347533,3237.6,3237.5,2.1111704]
[1736919995411,3.90657533,3237.6,3237.5,1.9341704]
[1736919996390,4.58809424,3237.6,3237.5,1.9341704]
[1736919996803,4.56461891,3237.6,3237.5,1.9341704]
[1736919997007,3.8831,3237.6,3237.5,1.9341704]
[1736919997205,2.90861379,3237.8,3237.4,0.7823]
[1736919997206,3.08854,3237.8,3237.4,0.7823]
[1736919997724,3.08832,3238.0,3237.4,0.7823]
[1736919998328,1.39838302,3238.3,3237.4,0.7823]
[1736919998329,3.88251,3238.3,3237.4,0.81318697]
[1736919998628,0.02347533,3238.2,3237.4,0.81318697]
[1736919998779,0.02347533,3238.2,3237.6,0.7823]
[1736919999181,0.02347533,3238.4,3237.6,0.7823]
[1736919999441,3.11143533,3238.4,3237.6,0.7823]
[1736920002836,3.08808,3238.3,3237.6,0.7823]
[1736920003036,0.02347533,3238.2,3237.6,0.7823]
[1736920003241,0.02347533,3238.2,3237.7,0.177]
[1736920004372,3.08827,3238.1,3237.7,0.177]
[1736920007710,0.02347533,3238.0,3237.6,0.7823]
[1736920007945,3.0885,3237.9,3237.7,0.177]
[1736920008214,3.11198533,3237.8,3237.7,0.177]
[1736920008627,0.8301,3238.4,3237.7,0.177]
[1736920008846,3.08823,3238.1,3237.7,0.177]
[1736920016322,3.08823,3238.1,3237.8,0.7901]
[1736920017566,0.8301,3238.7,3237.8,0.7901]
[1736920017755,3.08812,3238.3,3237.8,0.7901]
[1736920020457,3.08815,3238.2,3237.8,0.7901]
[1736920027908,0.02347533,3238.4,3237.8,0.7901]
[1736920028094,3.08814,3238.2,3237.8,0.7901]
[1736920031107,3.08814,3238.2,3237.9,0.177]
[1736920031314,3.08442335,3238.2,3237.9,0.177]
[1736920037347,3.08798,3238.4,3238.0,0.7872]
[1736920037847,2.20612999,3238.7,3238.0,0.7872]
[1736920038189,3.08786,3238.5,3238.0,0.81808243]
[1736920038352,3.08786,3238.5,3238.0,1.05519367]
[1736920038499,3.08786,3238.5,3238.1,0.7872]
[1736920039809,3.08786,3238.5,3238.1,0.7352]
[1736920043339,1.54416409,3238.9,3238.1,0.7352]
[1736920043841,3.08776,3238.6,3238.1,0.7352]
[1736920045781,3.08767,3238.7,3238.1,0.7352]
[1736920046750,3.08767,3238.7,3238.2,1.05600088]
[1736920046949,4.63166409,3238.9,3238.3,0.7872]
[1736920047187,3.2556341,3238.9,3238.3,0.7872]
[1736920047586,0.1681341,3238.9,3238.3,0.7872]
[1736920047744,3.08757,3238.8,3238.3,0.7872]
[1736920050553,0.1681341,3238.9,3238.4,0.81807769]
[1736920050753,0.1681341,3238.9,3238.4,0.7872]
[1736920052654,3.2556141,3238.9,3238.4,0.7872]
[1736920052850,3.08759,3238.8,3238.4,0.7872]
[1736920053101,1.37602999,3238.5,3238.1,0.7764]
[1736920053344,4.48744532,3238.4,3238.3,0.177]
[1736920053999,4.46396999,3238.4,3238.3,0.177]
[1736920054194,3.08794,3238.4,3238.2,0.177]
[1736920054928,1.37602999,3238.6,3238.2,0.177]
[1736920055096,3.11123533,3238.6,3238.2,0.177]
[1736920055301,3.11123533,3238.6,3238.3,0.7764]
[1736920055540,3.08785,3238.5,3238.3,0.7764]
[1736920063649,3.08769,3238.7,3238.3,0.7764]
[1736920065173,3.2556341,3238.9,3238.3,2.18330967]
[1736920065375,3.2556341,3238.9,3238.5,0.8014]
[1736920065579,3.08764,3238.8,3238.5,0.8014]
[1736920067974,0.1681341,3238.9,3238.5,0.8014]
[1736920070044,3.2556341,3238.9,3238.5,0.8014]
[1736920076791,0.1681341,3238.9,3238.5,0.8014]
[1736920079476,3.2556041,3238.9,3238.5,0.8014]
[1736920081009,0.1681341,3238.9,3238.5,0.8014]
[1736920082093,0.1681341,3238.9,3238.5,1.02223048]
[1736920082404,0.1681341,3238.9,3238.6,0.7749]
[1736920085428,0.1681341,3238.9,3238.5,1.59686047]
[1736920085429,0.1681341,3238.9,3238.8,0.7749]
[1736920085589,0.1681341,3238.9,3238.8,0.80576938]
[1736920085913,0.1681341,3238.9,3238.8,0.7749]
[1736920086124,0.1681341,3238.9,3238.8,4.289993]
[1736920086473,0.1681341,3238.9,3238.8,1.289993]
[1736920087108,0.1681341,3238.9,3238.8,4.40842329]
[1736920087290,0.1681341,3238.9,3238.8,4.377553]
[1736920087495,0.1681341,3238.9,3238.8,1.289993]
[1736920088092,0.1681341,3238.9,3238.8,3.22528581]
[1736920089922,0.1681341,3238.9,3238.8,6.31284581]
[1736920090129,0.1681341,3238.9,3238.8,4.377553]
[1736920090492,0.1681341,3238.9,3238.8,6.34371385]
[1736920090867,0.1681341,3238.9,3238.8,6.31284581]
[1736920091202,0.1681341,3238.9,3238.8,4.377553]
[1736920095545,0.1681341,3238.9,3238.8,4.40842105]
[1736920096514,0.1681341,3238.9,3238.8,1.289993]
[1736920097417,0.1681341,3238.9,3238.8,1.466993]
[1736920098045,0.1681341,3238.9,3238.8,0.9519]
[1736920099448,0.1681341,3238.9,3238.8,0.7749]
[1736920099742,0.1681341,3238.9,3238.7,1.37602999]
[1736920099947,0.1681341,3238.9,3238.5,9.09083048]
[1736920099948,0.1681341,3238.9,3238.8,0.177]
[1736920100240,0.1681341,3238.9,3238.5,10.24602999]
[1736920100445,0.1681341,3238.9,3238.8,0.177]
[1736920108561,0.1681341,3238.9,3238.4,3.81947356]
[1736920108562,0.7732,3238.8,3238.4,0.03087356]
[1736920108726,0.7732,3238.8,3238.5,0.177]
[1736920109461,0.1681341,3238.9,3238.5,0.177]
[1736920109672,0.1681341,3238.9,3238.6,1.37602999]
[1736920109871,0.1681341,3238.9,3238.7,0.15839051]
[1736920110077,0.1681341,3238.9,3238.8,0.7886]
[1736920113064,0.1681341,3238.9,3238.8,2.16462999]
[1736920114438,0.1681341,3238.9,3238.8,5.16462999]
[1736920114754,0.1681341,3238.9,3238.8,5.19549845]
[1736920114955,0.1681341,3238.9,3238.8,6.23302492]
[1736920115361,0.1681341,3238.9,3238.8,9.32058492]
[1736920115539,0.1681341,3238.9,3238.8,11.22345218]
[1736920116654,0.1681341,3238.9,3238.8,11.23235218]
[1736920117043,0.1681341,3238.9,3238.8,9.29861646]
[1736920118147,0.1681341,3238.9,3238.8,18.71861646]
[1736920118848,0.1681341,3238.9,3238.8,21.29617964]
[1736920119400,0.1681341,3238.9,3238.8,18.71861646]
[1736920120186,0.1681341,3238.9,3238.8,18.16861646]
[1736920120486,0.1681341,3238.9,3238.8,20.74500485]
[1736920121099,0.1681341,3238.9,3238.8,20.10118345]
[1736920121263,0.1681341,3238.9,3238.8,18.16861646]
[1736920121584,0.1681341,3238.9,3238.8,8.87]
[1736920121789,0.1681341,3238.9,3238.8,9.047]
[1736920124154,0.1681341,3238.9,3238.8,0.177]
[1736920124556,0.1681341,3238.9,3238.3,4.9333891]
[1736920124779,0.1681341,3238.9,3238.4,0.177]
[1736920125489,0.1681341,3238.9,3238.5,0.51103891]
[1736920127596,0.1681341,3238.9,3238.4,2.1103891]
[1736920129585,0.1681341,3238.9,3238.4,2.14126281]
[1736920130095,0.1681341,3238.9,3238.5,1.9333891]
[1736920130394,0.1681341,3238.9,3238.6,3.81417375]
[1736920130998,0.1681341,3238.9,3238.6,8.83531285]
[1736920131201,0.1681341,3238.9,3238.7,1.14117012]
[1736920131498,0.1681341,3238.9,3238.7,3.07455922]
[1736920131717,0.1681341,3238.9,3238.8,0.03087107]
[1736920132694,0.1681341,3238.9,3238.8,3.03087107]
[1736920132901,0.1681341,3238.9,3238.8,6.90173107]
[1736920133064,0.1681341,3238.9,3238.8,7.60481696]
[1736920133268,0.1681341,3238.9,3238.8,9.53820606]
[1736920133897,0.1681341,3238.9,3238.8,10.18120535]
[1736920134308,0.1681341,3238.9,3238.8,10.73120535]
[1736920137614,0.1681341,3238.9,3238.8,10.90820535]
[1736920141818,0.1681341,3238.9,3238.8,10.26465917]
[1736920142332,0.1681341,3238.9,3238.8,8.33181696]
[1736920145199,0.1681341,3238.9,3238.8,3.91095696]
[1736920145435,0.1681341,3238.9,3238.8,3.177]
[1736920146405,0.1681341,3238.9,3238.8,5.10998704]
[1736920146909,0.1681341,3238.9,3238.8,3.177]
[1736920147416,0.1681341,3238.9,3238.8,1.55185287]
[1736920149139,0.1681341,3238.9,3238.6,4.93298704]
[1736920149343,0.76,3238.8,3238.7,0.177]
[1736920149643,1.16155841,3238.8,3238.6,1.93298704]
[1736920149842,0.76,3238.8,3238.7,0.177]
[1736920154215,0.1681341,3238.9,3238.7,0.177]
[1736920154419,0.1681341,3238.9,3238.8,0.03087262]
[1736920154638,0.1681341,3238.9,3238.8,0.03087253]
[1736920154841,0.1681341,3238.9,3238.7,0.177]
[1736920155012,0.1681341,3238.9,3238.7,2.10998704]
[1736920155435,0.1681341,3238.9,3238.7,0.177]
[1736920156350,0.1681341,3238.9,3238.7,0.49778745]
[1736920156531,0.1681341,3238.9,3238.7,3.52865929]
[1736920157047,0.1681341,3238.9,3238.7,5.46164633]
[1736920157219,0.1681341,3238.9,3238.7,3.52865929]
[1736920157827,0.1681341,3238.9,3238.7,3.49778745]
[1736920158155,0.1681341,3238.9,3238.8,0.93218145]
[1736920161371,0.1681341,3238.9,3238.7,0.49778745]
[1736920165159,0.1681341,3238.9,3238.8,0.177]
[1736920170137,0.13882709,3238.9,3238.8,0.177]
[1736920171367,0.13882709,3238.9,3238.5,4.93298704]
[1736920171560,0.7947,3238.8,3238.6,0.177]
[1736920172364,0.7947,3238.8,3238.5,3.0]
[1736920172570,0.7947,3238.8,3238.6,0.177]
[1736920173343,0.79098301,3238.8,3238.6,0.177]
[1736920175560,0.79098301,3238.8,3238.6,0.7676987]
[1736920177145,0.13882709,3238.9,3238.6,0.7676987]
[1736920178350,0.13882709,3238.9,3238.6,0.177]
[1736920186163,0.16230242,3238.9,3238.7,0.177]
[1736920186494,0.808,3238.8,3238.7,0.177]
[1736920188885,3.89559,3238.8,3238.7,0.177]
[1736920189090,4.30137924,3238.8,3238.7,0.177]
[1736920189282,3.91039,3238.7,3238.3,3.0]
[1736920189481,0.8227,3238.5,3238.4,0.177]
[1736920192189,0.8227,3238.5,3238.3,3.0]
[1736920192365,0.8227,3238.5,3238.4,0.177]
[1736920198279,0.13882709,3238.9,3238.4,0.4947]
[1736920198480,0.13882709,3238.9,3238.5,2.13730128]
[1736920200215,0.13882709,3238.9,3238.5,5.13730128]
[1736920200509,0.13882709,3238.9,3238.7,1.37560128]
[1736920201490,0.13882709,3238.9,3238.5,3.79257474]
[1736920201707,0.13882709,3238.9,3238.6,0.73751947]
[1736920203225,0.16230242,3238.9,3238.6,0.73751947]
[1736920203385,0.16230242,3238.9,3238.5,3.0]
[1736920203586,0.16230242,3238.9,3238.4,3.4947]
[1736920208481,0.13882709,3238.9,3238.5,0.177]
[1736920210921,0.16230242,3238.9,3238.5,0.177]
[1736920212717,0.13882709,3238.9,3238.5,0.177]
[1736920213025,0.13882709,3238.9,3238.6,0.42648]
[1736920214233,0.13882709,3238.9,3238.5,0.177]
[1736920216936,3.91899,3239.3,3238.9,0.11077291]
[1736920218037,0.8319,3239.3,3238.9,0.11077291]
[1736920218218,0.02347533,3239.2,3238.9,0.11077291]
[1736920220341,0.8319,3239.3,3238.9,0.11077291]
[1736920222241,0.8319,3239.3,3238.9,0.69954624]
[1736920222823,0.8319,3239.3,3238.9,0.69954624]
[1736920225646,0.8319,3239.3,3239.0,0.177]
[1736920227656,0.8169,3239.5,3239.0,0.177]
[1736920227955,0.8169,3239.5,3239.0,1.55182525]
[1736920230876,0.84037533,3239.5,3239.0,1.55182525]
[1736920231025,0.8169,3239.5,3239.0,1.55182525]
[1736920231649,0.02347533,3239.4,3239.0,1.55182525]
[1736920233254,0.8169,3239.5,3239.0,1.8582724]
[1736920236361,0.8169,3239.5,3239.0,1.55182525]
[1736920240373,0.8169,3239.5,3239.2,1.37482525]
[1736920242946,0.8169,3239.5,3239.0,1.55182525]
[1736920244079,0.84037533,3239.5,3239.0,1.55182525]
[1736920247365,3.92728533,3239.5,3239.0,1.55182525]
[1736920247570,0.7915,3239.4,3239.0,1.55182525]
[1736920247782,0.02347533,3239.3,3239.0,1.55182525]
[1736920249295,0.02347533,3239.3,3239.0,0.177]
[1736920251772,3.87849,3239.4,3239.0,0.177]
[1736920251955,0.02347533,3239.3,3239.0,0.177]
[1736920253562,0.02347533,3239.3,3239.0,1.55182525]
[1736920253898,0.7915,3239.4,3239.0,2.01808507]
[1736920254099,0.7915,3239.4,3239.0,1.55182525]
[1736920256130,0.02347533,3239.3,3239.0,0.177]
[1736920257565,0.7791,3239.2,3239.0,0.177]
[1736920258503,0.7791,3239.2,3238.9,0.11077291]
[1736920258703,0.7791,3239.2,3239.1,0.176]
[1736920267748,0.8172,3239.4,3239.1,0.176]
[1736920267916,0.8172,3239.6,3239.1,0.176]
[1736920269499,0.02347533,3239.5,3239.1,0.176]
[1736920271802,0.8172,3239.4,3238.9,2.04036065]
[1736920272001,0.8172,3239.1,3239.0,0.176]
[1736920272328,3.90449,3239.1,3239.0,0.176]
[1736920276817,3.90449,3239.1,3238.9,0.11077291]
[1736920276818,3.90457,3239.0,3238.9,0.11077291]
[1736920277020,5.69331958,3239.0,3238.9,0.28677291]
[1736920277223,5.69331958,3239.0,3238.9,0.11077291]
[1736920279252,10.61814483,3239.0,3238.9,2.91e-06]
[1736920279416,3.87113,3238.2,3238.1,0.11160291]
[1736920279621,4.258243,3238.2,3238.1,0.11160291]
[1736920279839,3.08854,3237.8,3237.4,1.92958774]
[1736920280043,0.02347533,3237.7,3237.5,0.176]
[1736920280362,0.80647533,3237.7,3237.4,1.92958774]
[1736920280566,0.80647533,3237.7,3237.4,0.176]
[1736920280735,0.02347533,3237.6,3237.1,4.37482525]
[1736920281044,0.02347533,3237.6,3237.2,0.176]
[1736920281449,3.11218533,3237.6,3237.2,0.176]
[1736920282137,3.08881,3237.5,3237.2,0.176]
[1736920282444,0.02347533,3237.4,3237.3,0.176]
[1736920282653,3.11236533,3237.4,3237.3,0.176]
[1736920283545,0.02347533,3237.4,3237.3,0.176]
[1736920283952,0.02347533,3237.5,3237.3,0.176]
[1736920284319,3.08871,3237.6,3237.3,0.176]
[1736920284744,0.02347533,3237.5,3237.3,0.176]
[1736920288850,0.783,3238.0,3237.4,0.8287]
[1736920289151,3.08804,3238.3,3237.5,1.37482525]
[1736920289152,3.08807,3238.3,3237.5,1.37482525]
[1736920289353,3.08807,3238.3,3237.7,1.37482525]
[1736920289561,0.783,3238.4,3237.8,0.8287]
[1736920289742,0.02347533,3238.3,3237.8,0.8287]
[1736920289958,0.02347533,3238.3,3237.9,0.176]
[1736920290674,3.11155533,3238.3,3237.9,0.176]
[1736920291675,3.50101086,3238.3,3237.9,0.176]
[1736920294258,3.08788,3238.5,3237.9,0.176]
[1736920294463,3.11142533,3238.4,3237.9,0.176]
[1736920296275,3.08795,3238.4,3237.9,0.176]
[1736920296776,3.11151533,3238.3,3237.9,0.176]
[1736920296972,3.08823,3238.1,3237.9,0.176]
[1736920297159,0.33229833,3238.0,3237.9,0.176]
[1736920297352,3.88849533,3238.0,3237.9,0.176]
[1736920297961,3.08891,3237.4,3236.9,0.7859]
[1736920298144,3.08891,3237.4,3237.1,0.176]
[1736920298340,3.08908,3237.2,3237.1,0.176]
[1736920298544,3.08935,3237.0,3236.5,0.7859]
[1736920298778,0.02347533,3236.9,3236.6,0.176]
[1736920299175,3.11285533,3236.9,3236.6,0.176]
[1736920299379,3.08947,3236.8,3236.6,0.176]
[1736920300455,0.02347533,3236.7,3236.6,0.176]
[1736920300881,0.02347533,3236.9,3236.6,0.176]
[1736920303485,0.02347533,3236.9,3236.2,0.7859]
[1736920303486,3.0896,3236.7,3236.2,0.7859]
[1736920303784,0.02347533,3236.6,3236.3,0.176]
[1736920304081,0.38894853,3236.9,3236.3,0.176]
[1736920304387,0.02347533,3236.6,3236.3,0.176]
[1736920304683,0.02347533,3236.6,3236.4,0.176]
[1736920304883,3.08969,3236.6,3236.4,0.176]
[1736920305086,0.02347533,3236.5,3236.4,0.176]
[1736920305951,0.80017533,3236.5,3236.4,0.176]
[1736920306252,1.18916186,3236.5,3236.4,0.176]
[1736920306969,1.16568653,3236.5,3236.4,0.176]
[1736920307175,0.7767,3236.7,3236.4,0.176]
[1736920307375,0.02347533,3236.6,3236.4,0.176]
[1736920307757,0.02347533,3236.6,3235.6,0.8228]
[1736920308087,3.08994,3236.3,3235.7,0.176]
[1736920308252,0.02347533,3236.2,3235.7,0.176]
[1736920310757,0.02347533,3236.2,3235.9,0.176]
[1736920311049,0.02347533,3236.2,3235.6,0.8228]
[1736920311248,0.02347533,3236.2,3235.7,0.176]
[1736920318565,3.11320533,3236.6,3235.7,0.176]
[1736920318764,0.45091998,3236.5,3235.7,0.176]
[1736920318964,3.09005,3236.2,3235.7,0.176]
[1736920319281,0.02347533,3236.1,3235.7,0.176]
[1736920320785,0.45091998,3236.5,3235.9,0.8228]
[1736920321388,0.45091998,3236.5,3236.0,0.176]
[1736920321575,3.08967,3236.6,3236.0,0.176]
[1736920321771,3.08967,3236.6,3236.2,0.8228]
[1736920322096,3.0895,3236.8,3236.2,0.8228]
[1736920322775,0.02347533,3236.7,3236.2,0.8228]
[1736920323167,3.11303533,3236.7,3236.2,0.8228]
[1736920326281,3.08946,3236.9,3236.3,0.8122]
[1736920327374,3.11296533,3236.8,3236.3,0.8122]
[1736920328219,3.08958,3236.7,3236.3,0.8122]
[1736920328391,0.83707533,3236.6,3236.0,0.8122]
[1736920328578,3.09005,3236.2,3236.1,0.176]
[1736920329379,3.399055,3236.2,3236.1,0.176]
[1736920329781,3.09027,3236.0,3235.6,0.8122]
[1736920329980,0.02347533,3235.9,3235.7,0.176]
[1736920330215,0.02347533,3236.1,3235.7,0.176]
[1736920330510,3.09031,3236.0,3235.7,0.176]
[1736920330713,3.11381533,3235.9,3235.8,0.176]
[1736920330916,3.11381533,3235.9,3235.6,0.8122]
[1736920331115,3.11381533,3235.9,3235.8,0.176]
[1736920332335,0.02347533,3235.9,3235.4,0.8122]
[1736920332630,3.09044,3235.8,3235.4,0.8122]
[1736920332785,0.02347533,3235.7,3235.5,0.177]
[1736920337111,0.02347533,3235.9,3235.5,0.177]
[1736920337688,0.37412372,3235.9,3235.5,0.177]
[1736920338399,3.11386533,3235.9,3235.5,0.177]
[1736920341324,0.02347533,3235.9,3235.5,0.177]
[1736920341527,3.09029,3236.0,3235.5,0.177]
[1736920341934,3.09034,3235.9,3235.5,0.177]
[1736920342334,0.8136,3236.2,3235.5,0.177]
[1736920342506,3.09024,3236.0,3235.5,0.177]
[1736920342713,0.02347533,3235.9,3235.5,0.177]
[1736920343433,3.11381533,3235.9,3235.5,0.177]
[1736920343643,3.0905,3235.8,3235.5,0.177]
[1736920343811,0.81177533,3235.7,3235.5,0.177]
[1736920344130,0.39022753,3235.6,3235.5,0.177]
[1736920344900,0.39022753,3235.6,3235.1,3.7657]
[1736920345106,0.02347533,3235.5,3235.2,0.177]
[1736920345306,0.01975926,3235.5,3235.2,0.177]
[1736920346335,0.01975926,3235.6,3235.2,0.177]
[1736920350100,3.87867,3235.9,3235.2,0.177]
[1736920351327,3.87867,3235.9,3235.2,3.08370488]
[1736920351834,0.7883,3235.9,3235.2,3.08370488]
[1736920352034,0.7883,3235.9,3235.2,3.96160414]
[1736920352241,3.09026,3236.0,3235.6,0.7658]
[1736920352798,0.7538,3236.2,3235.6,0.7658]
[1736920353016,0.01975926,3236.1,3235.6,0.7658]
[1736920354228,0.01975926,3236.2,3235.7,0.177]
[1736920355723,3.08995,3236.3,3235.7,0.177]
[1736920355724,3.08995,3236.3,3235.8,2.90670488]
[1736920356036,3.08995,3236.3,3235.9,0.8295]
[1736920359110,0.7569,3236.5,3235.9,0.8295]
[1736920359344,3.08979,3236.5,3235.9,0.8295]
[1736920359540,0.7569,3236.7,3235.9,0.8295]
[1736920359748,3.10941926,3236.6,3236.1,2.90670488]
[1736920360831,3.08966,3236.6,3236.2,0.8295]
[1736920361010,3.08946,3236.9,3236.4,2.90670488]
[1736920361216,0.01975926,3236.8,3236.5,0.8295]
[1736920361532,0.01975926,3236.8,3236.6,0.176]
[1736920364368,3.08921,3237.1,3236.6,0.176]
[1736920364573,3.08929,3237.0,3236.6,0.176]
[1736920367388,0.01975926,3236.9,3236.6,0.176]
[1736920367689,3.08929,3237.0,3236.6,0.176]
[1736920368388,3.08929,3237.0,3236.6,0.56722049]
[1736920369159,3.08909,3237.2,3236.7,0.7957]
[1736920369357,1.39881165,3237.7,3237.0,2.90670488]
[1736920369552,3.10854926,3237.6,3237.1,0.7957]
[1736920369766,3.10854926,3237.6,3237.1,1.16594049]
[1736920374659,3.10854926,3237.6,3237.2,0.176]
[1736920376765,3.10854926,3237.6,3237.1,1.16594049]
[1736920376967,3.10854926,3237.6,3237.3,0.176]
[1736920378410,3.08879,3237.6,3237.1,1.16594049]
[1736920378616,3.08879,3237.6,3237.2,0.58326454]
[1736920379025,0.01975926,3237.5,3237.2,0.58326454]
[1736920379309,0.01975926,3237.5,3237.2,0.40726454]
[1736920379512,0.01975926,3237.5,3237.3,0.176]
[1736920380407,3.089,3237.3,3237.1,0.7957]
[1736920380612,0.7931,3237.8,3237.2,0.176]
[1736920380823,0.01975926,3237.7,3237.2,0.176]
[1736920380988,0.01975926,3237.7,3237.1,1.16594049]
[1736920381178,0.01975926,3237.7,3237.2,0.176]
[1736920381374,3.08874,3237.6,3237.2,0.176]
[1736920381614,0.01975926,3237.5,3237.2,0.176]
[1736920382296,3.08874,3237.6,3237.2,0.176]
[1736920382503,0.01975926,3237.5,3237.2,0.176]
[1736920382810,0.01975926,3237.5,3237.1,1.16594049]
[1736920383010,0.01975926,3237.5,3237.2,0.176]
[1736920383184,3.08874,3237.6,3237.2,0.176]
[1736920384031,0.01975926,3237.5,3237.2,0.176]
[1736920385457,0.01975926,3237.5,3237.1,1.16594049]
[1736920385757,0.01975926,3237.5,3237.3,0.176]
[1736920388237,3.08874,3237.6,3237.3,0.176]
[1736920388451,0.01975926,3237.5,3237.3,0.176]
[1736920390218,3.08884,3237.5,3237.3,0.176]
[1736920390424,0.01975926,3237.4,3237.3,0.176]
[1736920392174,3.10864926,3237.4,3237.3,0.176]
[1736920392477,3.08918,3237.1,3236.5,0.7985]
[1736920392662,0.01975926,3237.0,3236.6,0.176]
[1736920393475,0.01975926,3237.0,3236.7,1.37685537]
[1736920393677,0.01975926,3237.0,3236.8,0.176]
[1736920394959,3.08928,3237.0,3236.8,0.176]
[1736920395175,0.01975926,3236.9,3236.8,0.176]
[1736920395758,3.10912926,3236.9,3236.8,0.176]
[1736920397239,3.42004219,3236.9,3236.8,0.176]
[1736920398339,3.10912926,3236.9,3236.8,0.176]
[1736920398579,3.08937,3236.9,3236.8,0.176]
[1736920399775,3.08937,3236.9,3236.5,2.90851046]
[1736920399945,3.08937,3236.9,3236.8,0.176]
[1736920403457,3.0892,3237.1,3236.8,0.176]
[1736920403654,3.86363,3237.3,3236.8,0.176]
[1736920403881,0.01975926,3237.2,3236.8,0.176]
[1736920406904,3.08903,3237.3,3236.8,0.176]
[1736920407179,0.01975926,3237.2,3236.8,0.176]
[1736920407373,3.0891,3237.2,3236.8,0.176]
[1736920407892,0.01975926,3237.1,3236.8,0.176]
[1736920408251,3.0891,3237.2,3236.8,0.176]
[1736920408450,0.01975926,3237.1,3236.8,0.176]
[1736920410418,3.08928,3237.0,3236.9,0.176]
[1736920415887,3.91398,3237.0,3236.9,0.176]
[1736920416093,4.32513726,3237.0,3236.9,0.176]
[1736920419608,4.32513726,3237.0,3236.9,0.126]
[1736920420604,4.305378,3237.0,3236.9,0.126]
[1736920420810,3.480678,3237.0,3236.9,0.126]
[1736920423112,3.50043726,3237.0,3236.9,0.126]
[1736920423412,4.32513726,3237.0,3236.9,0.126]
[1736920424683,3.480678,3237.0,3236.9,0.026]
[1736920424882,3.08928,3237.0,3236.9,0.026]
[1736920425075,3.0891,3237.2,3236.9,0.026]
[1736920425594,0.01975926,3237.1,3236.9,0.026]
[1736920425793,3.10896926,3237.1,3236.9,0.026]
[1736920426200,3.08928,3237.0,3236.9,0.026]
[1736920429195,3.08912,3237.2,3236.9,0.026]
[1736920430423,3.0887,3237.6,3237.0,1.37684047]
[1736920430722,3.08853,3237.8,3237.5,2.14004047]
[1736920431318,0.7654,3238.3,3237.7,1.37684047]
[1736920431531,0.7654,3238.3,3237.9,1.37684047]
[1736920431687,3.08816,3238.2,3237.9,1.37684047]
[1736920432393,0.62646827,3238.4,3237.9,1.37684047]
[1736920432394,3.08797,3238.4,3238.1,1.37684047]
[1736920433009,0.01975926,3238.3,3238.1,1.37684047]
[1736920434534,3.10779926,3238.3,3238.1,1.37684047]
[1736920437129,3.10779926,3238.3,3237.9,2.14004047]
[1736920440332,3.08804,3238.3,3237.9,2.14004047]
[1736920440536,0.01975926,3238.2,3237.9,2.14004047]
[1736920442224,3.10792926,3238.2,3237.9,2.14004047]
[1736920444233,3.08869,3237.7,3237.2,0.7777]
[1736920444441,0.01975926,3237.6,3237.3,1.55284047]
[1736920444640,0.7621,3238.3,3237.6,0.7777]
[1736920444835,3.08832,3238.0,3237.8,1.37684047]
[1736920445219,3.08813,3238.3,3237.9,0.7777]
[1736920445515,0.01975926,3238.2,3238.0,1.37684047]
[1736920463968,3.10788926,3238.2,3238.0,1.37684047]